[Event "40th Cappelle Open 2024"]
[Site "Cappelle-la-Grande"]
[Date "2024.03.04"]
[Round "3.15"]
[White "Bellahcene, Bilel"]
[Black "Aydin, Gulenay"]
[Result "1/2-1/2"]
[ECO "E11"]
[WhiteElo "2522"]
[BlackElo "2152"]
[Annotator "TA"]
[PlyCount "81"]
[EventDate "2024.03.02"]
[EventType "swiss"]
[EventCountry "FRA"]
[SourceTitle "playchess.com"]
[Source "ChessBase"]
[SourceQuality "1"]
[TimeControl "40/5400+30:1800+30"]

{[%evp 14,81,29,0,14,0,7,0,13,14,14,0,0,-11,-14,-10,-8,-21,0,0,0,13,0,0,9,0,62,0,7,0,3,0,0,0,132,-30,-40,-31,-18,-74,-76,-74,-68,-99,-105,-112,-106,-104,-96,-104,-110,-105,-116,-104,-45,-41,-36,-36,-40,-33,-33,-33,-33,-40,-39,-48,0,-54,-56,-67]} 1. d4 {[%emt 0:15:22]} d5 {[%emt 0:00:05]} 2. c4 {[%emt 0:00:13]} e6 {[%emt 0:00:06]} 3. Nf3 {[%emt 0:00:14]} Nf6 {[%emt 0:00:10]} 4. g3 {[%emt 0:00:27]} Be7 {[%emt 0:01:14]} 5. Bg2 {[%emt 0:00:16]} O-O {[%emt 0:00:09]} 6. O-O {[%emt 0:00:03]} c6 {[%emt 0:00:15]} 7. Qc2 {[%emt 0:00:15]} b6 {[%emt 0:00:47]} 8. Bg5 {[%emt 0:00:08]} Na6 {[%emt 0:13:57]} 9. Nbd2 {[%emt 0:04:25]} c5 {[%emt 0:10:40]} 10. Rfd1 {[%emt 0:10:34]} Bb7 {[%emt 0:02:43] The position is equal.} 11. dxc5 {[%emt 0:00:48]} Nxc5 {[%emt 0:00:51]} 12. Bxf6 {[%emt 0:14:45]} Bxf6 {[%emt 0:00:07]} 13. cxd5 {[%emt 0:00:02]} exd5 {[%emt 0:05:08]} 14. Nb3 {[%emt 0:01:31]} Rc8 {[%emt 0:15:28] ...Na4 would now be deadly.} 15. Nbd4 {[%emt 0:01:07]} Re8 {[%emt 0:00:08]} 16. e3 {[%emt 0:00:09]} g6 {[%emt 0:01:20]} 17. Bh3 {[%emt 0:01:41]} Ne6 {[%emt 0:08:01]} 18. Qa4 {[%emt 0:03:13]} a6 {[%emt 0:04:03]} 19. Rac1 {[%emt 0:01:57]} Qe7 {[%emt 0:11:48]} (19... Nc5 $11 20. Qc2 Nd7) 20. Bf1 {[%emt 0:01:25] White is more active.} ({White should play} 20. Nxe6 $14 fxe6 21. Nd4 Bxd4 22. Qxd4) 20... Kg7 {[%emt 0:07:09]} 21. h4 {[%emt 0:02:37]} (21. Bxa6 $2 Nxd4 (21... Nc5 $2 22. Bxb7 Nxa4 23. Bxc8 $19) 22. exd4 (22. Nxd4 $2 Ra8 $19) 22... Rxc1 23. Rxc1 Ra8 $19) 21... h5 {[%emt 0:02:35]} 22. Bh3 {[%emt 0:01:15]} (22. Bxa6 $2 Nxd4 (22... Nc5 23. Bxb7 Nxa4 24. Bxc8 $17) 23. Nxd4 Ra8 $19) 22... Nxd4 {[%emt 0:06:57]} 23. Nxd4 {[%emt 0:00:46]} Rc4 {[%emt 0:00:11]} 24. Qb3 $2 {[%emt 0:00:36]} (24. Rxc4 $16 dxc4 25. Ne6+ (25. Qxc4 Qe4 $14) 25... fxe6 26. Rd7 (26. Qxc4 $2 Rd8 $19)) 24... Bxd4 $11 {[%emt 0:01:01]} 25. exd4 {[%emt 0:00:21]} Qf6 {[%emt 0:00:02]} 26. Qd3 {[%emt 0:04:13] Repels Re2} (26. Rxc4 dxc4 27. Qc3 (27. Qxc4 $2 Qf3 $19) 27... Bf3 $17) (26. Bg2 $11 {remains equal.}) 26... Re4 $1 $17 {[%emt 0:00:50][%cal Re4d4]} 27. Rxc4 {[%emt 0:00:50]} dxc4 {[%emt 0:00:05]} 28. Qd2 {[%emt 0:00:15] [#]} (28. Qxc4 $2 {too greedy.} Qf3 29. Rf1 Rxh4 $19) 28... Qf3 $1 {[%emt 0:00:50][%cal Oe4e1]} 29. d5 {[%emt 0:02:35] [#]} (29. Bg2 $2 {gets mated.} Re1+ 30. Rxe1 Qxg2#) 29... Bxd5 $1 {[%emt 0:00:04][%cal Oe4e1][%mdl 512] ( -> ...Re1+!)} 30. Qc3+ {[%emt 0:00:27]} (30. Qxd5 $2 {perishes.} Re1+ 31. Rxe1 Qxd5 $19) 30... Qxc3 {[%emt 0:00:05]} 31. bxc3 {[%emt 0:00:01]} Be6 {[%emt 0:05:44]} 32. Bxe6 {[%emt 0:05:37]} Rxe6 {[%emt 0:00:02][%mdl 4096] Endgame. KR-KR} 33. a4 {[%emt 0:00:00]} Re2 {[%emt 0:03:29]} (33... Kf6 $17 34. Kf1 Ke7) 34. Rb1 $15 {[%emt 0:00:42] [#]} b5 $1 {[%emt 0:00:15]} 35. axb5 {[%emt 0:00:07]} axb5 {[%emt 0:00:02]} 36. Rxb5 {[%emt 0:00:03]} Rc2 {[%emt 0:00:05]} 37. Rc5 {[%emt 0:00:17]} Rxc3 {[%emt 0:00:03]} 38. Rc6 {[%emt 0:01:06]} Kf8 {[%emt 0:01:41]} 39. Rc7 {[%emt 0:00:27]} Kg7 {[%emt 0:00:54]} 40. Rc6 $1 {[%emt 0:00:07]} Rc1+ {[%emt 0:00:26]} 41. Kg2 {[%emt 0:30:01] Weighted Error Value: White=0.15 (very precise) /Black=0.16 (very precise) .  Mistake:       	White=3     	Black=3      Inaccurate:     	White=1     	---        OK:         	White=14    	Black=7      Best:        	White=2     	Black=1      Strong:       	White=1     	Black=2      Brilliant:      	---       	Black=1} 1/2-1/2

[Event "40th Cappelle Open 2024"]
[Site "Cappelle-la-Grande"]
[Date "2024.03.04"]
[Round "3.16"]
[White "Vallet, Marc"]
[Black "Lamard, Guillaume"]
[Result "0-1"]
[ECO "D38"]
[WhiteElo "2155"]
[BlackElo "2483"]
[Annotator "ChessBase"]
[PlyCount "60"]
[EventDate "2024.03.02"]
[EventType "swiss"]
[EventCountry "FRA"]
[SourceTitle "playchess.com"]
[Source "ChessBase"]
[SourceQuality "1"]
[TimeControl "40/5400+30:1800+30"]

1. d4 {[%emt 0:03:38]} Nf6 {[%emt 0:00:05]} 2. c4 {[%emt 0:00:22]} e6 {[%emt 0:00:03]} 3. Nf3 {[%emt 0:00:21]} d5 {[%emt 0:00:21]} 4. Nc3 {[%emt 0:00:33]} Bb4 {[%emt 0:00:29]} 5. Qa4+ {[%emt 0:07:11]} Nc6 {[%emt 0:00:06]} 6. Bg5 {[%emt 0:07:33]} h6 {[%emt 0:00:36]} 7. Bxf6 {[%emt 0:03:26]} Qxf6 {[%emt 0:00:05]} 8. e3 {[%emt 0:00:16]} O-O {[%emt 0:01:31]} 9. Qc2 {[%emt 0:06:20]} Rd8 {[%emt 0:04:03]} 10. O-O-O {[%emt 0:09:13]} Bf8 {[%emt 0:09:48]} 11. h4 {[%emt 0:03:56]} a6 {[%emt 0:05:26]} 12. a3 {[%emt 0:18:23]} Rb8 {[%emt 0:10:27]} 13. Bd3 {[%emt 0:01:39]} b5 {[%emt 0:01:51]} 14. cxb5 {[%emt 0:05:17]} axb5 {[%emt 0:00:19]} 15. Bxb5 {[%emt 0:02:05]} Na5 {[%emt 0:11:32]} 16. Qa4 {[%emt 0:01:35]} c6 {[%emt 0:02:34]} 17. Qxa5 {[%emt 0:04:03]} cxb5 {[%emt 0:00:10]} 18. Qc7 {[%emt 0:04:24]} Bd6 {[%emt 0:03:21]} 19. Qc6 {[%emt 0:01:57]} b4 {[%emt 0:01:55]} 20. axb4 {[%emt 0:00:32]} Rxb4 {[%emt 0:01:42]} 21. Qa8 {[%emt 0:02:16]} Bb7 {[%emt 0:03:31]} 22. Qa1 {[%emt 0:00:24]} Ra8 {[%emt 0:02:40]} 23. Qb1 {[%emt 0:00:05]} Ba6 {[%emt 0:00:13]} 24. Rd2 {[%emt 0:02:56]} Rab8 {[%emt 0:02:59]} 25. Kd1 {[%emt 0:01:22]} Bc4 {[%emt 0:03:21]} 26. Ke1 {[%emt 0:01:06]} Rb3 {[%emt 0:01:40]} 27. Qc2 {[%emt 0:03:27]} Bb4 {[%emt 0:01:25]} 28. Ne5 {[%emt 0:00:29]} Bxc3 {[%emt 0:00:32]} 29. bxc3 {[%emt 0:00:17]} Rb1+ {[%emt 0:00:18]} 30. Rd1 {[%emt 0:00:14]} R1b2 {[%emt 0:00:27]} 0-1

[Event "40th Cappelle Open 2024"]
[Site "Cappelle-la-Grande"]
[Date "2024.03.04"]
[Round "3.17"]
[White "Van Houtte, Randy"]
[Black "Roshka, Yevgeniy"]
[Result "0-1"]
[ECO "A13"]
[WhiteElo "2152"]
[BlackElo "2468"]
[Annotator "TA"]
[PlyCount "50"]
[EventDate "2024.03.02"]
[EventType "swiss"]
[EventCountry "FRA"]
[SourceTitle "playchess.com"]
[Source "ChessBase"]
[SourceQuality "1"]
[TimeControl "40/5400+30:1800+30"]

{[%evp 12,50,22,0,0,0,0,0,0,0,14,0,10,-118,-68,-179,-136,-149,-158,-162,-175,-147,-154,-252,-268,-268,-263,-255,-81,-64,-68,-103,-101,-175,-175,-328,-312,-297,-305,-617,-615]} 1. Nf3 {[%emt 0:05:08]} Nf6 {[%emt 0:03:00]} 2. c4 {[%emt 0:00:10]} e6 {[%emt 0:00:08]} 3. e3 {[%emt 0:00:10]} d5 {[%emt 0:00:39]} 4. b3 {[%emt 0:00:07]} c5 {[%emt 0:00:05]} 5. Bb2 {[%emt 0:00:06]} Nc6 {[%emt 0:00:03]} 6. cxd5 {[%emt 0:00:47]} exd5 {[%emt 0:00:04]} 7. d4 {[%emt 0:00:06]} cxd4 {[%emt 0:00:03]} 8. Nxd4 {[%emt 0:00:07]} Bb4+ {[%emt 0:01:28]} 9. Bc3 {[%emt 0:02:56]} Bd6 {[%emt 0:01:59] The position is equal.} 10. Nd2 {[%emt 0:07:29]} O-O {[%emt 0:01:36]} 11. Be2 {[%emt 0:01:15]} Bd7 {[%emt 0:00:34]} 12. g4 {[%emt 0:05:58]} (12. O-O $11 {keeps the balance.}) 12... Ne5 {[%emt 0:05:06]} ({Better is} 12... Rc8 $17 {And now ...Ne5 would win.} 13. Bb2 Nxd4 14. Bxd4 Bc5 15. Bxc5 Rxc5) 13. g5 {[%emt 0:10:22]} (13. h3 $15) 13... Ne4 {[%emt 0:06:06]} 14. Nxe4 {[%emt 0:00:46]} dxe4 {[%emt 1:16:39]} 15. Qd2 {[%emt 0:06:21]} Rc8 $1 {[%emt 0:00:00]} 16. h4 {[%emt 0:12:12]} Qe7 {[%emt 0:00:00][%cal Oc8c3] ...Rxc3! is the strong threat. Black is more active.} 17. Nc2 {[%emt 0:09:52] [#]} (17. a3 $17) 17... Nd3+ $1 $19 {[%emt 0:00:00][%mdl 512]} 18. Bxd3 {[%emt 0:02:46]} exd3 {[%emt 0:00:00]} 19. Qxd3 {[%emt 0:00:05] [#]} Rxc3 $2 {[%emt 0:00:00]} 20. Qxc3 $17 {[%emt 0:00:55]} Rc8 $1 {[%emt 0:00:00]} 21. Qd3 {[%emt 0:14:03] [#] Threatens to win with Rd1.} Bc6 $1 {[%emt 0:00:00][%cal Oc6e4,Bd7c6,Bc6h1,Bh1f3][%mdl 32]} 22. Rd1 {[%emt 0:01:48] [#]} Rd8 $1 $36 {[%emt 0:00:00][%mdl 2048] Black is in control.} (22... Bxh1 23. Qxd6 Qxd6 (23... Qe4 $2 24. Qd8+ Qe8 25. Qxe8+ Rxe8 26. Nd4 $18) 24. Rxd6 $18) 23. Nd4 $2 {[%emt 0:12:23]} (23. O-O {was worth a try.} Bh2+ 24. Kxh2 Rxd3 25. Rxd3) 23... Bxh1 {[%emt 0:00:00] This pair of bishops is nice.} 24. Nf5 {[%emt 0:00:09]} Qc7 {[%emt 0:00:00]} (24... Bb4+ 25. Ke2 Rxd3 26. Nxe7+ Bxe7 27. Kxd3 $17) 25. Nxd6 {[%emt 0:00:52]} (25. Ke2 Qc6 26. Ne7+ Bxe7 27. Qxd8+ Bf8 28. Kd2) 25... Bf3 {[%emt 0:00:00] Weighted Error Value: White=0.67/Black=0.20 (precise) .  Missed win:     	---       	Black=1      Mistake:       	White=6     	Black=1      Inaccurate:     	White=1     	---        OK:         	White=4     	Black=5      Best:        	White=3     	Black=2      Strong:       	---       	Black=4} 0-1

[Event "40th Cappelle Open 2024"]
[Site "Cappelle-la-Grande"]
[Date "2024.03.04"]
[Round "3.18"]
[White "Wirig, Anthony"]
[Black "Midy, Robin"]
[Result "1-0"]
[ECO "D35"]
[WhiteElo "2462"]
[BlackElo "2151"]
[Annotator "TA"]
[PlyCount "68"]
[EventDate "2024.03.02"]
[EventType "swiss"]
[EventCountry "FRA"]
[SourceTitle "playchess.com"]
[Source "ChessBase"]
[SourceQuality "1"]
[TimeControl "40/5400+30:1800+30"]

{[%evp 11,68,17,23,-6,18,15,23,18,7,17,22,0,7,0,8,-31,-27,-26,0,-10,-24,-30,0,-26,-18,-49,22,14,43,43,40,50,208,219,215,222,255,254,255,212,218,212,217,216,217,217,245,191,518,529,785,811,785,826,824,826,857,-375,693]} 1. d4 {[%emt 0:00:03]} d5 {[%emt 0:01:43]} 2. Nf3 {[%emt 0:03:09]} Nf6 {[%emt 0:00:08]} 3. c4 {[%emt 0:00:14]} e6 {[%emt 0:00:06]} 4. Nc3 {[%emt 0:03:46]} Nbd7 {[%emt 0:00:17][%cal Bb8d7,Bd7f8,Bf8g6][%mdl 32]} 5. cxd5 {[%emt 0:08:30]} exd5 {[%emt 0:00:16]} 6. Bf4 {[%emt 0:00:09]} Bb4 {[%emt 0:00:31]} 7. Nd2 {[%emt 0:18:52]} c6 {[%emt 0:07:22] Inhibits Nb5.} 8. e3 {[%emt 0:01:06]} Nf8 {[%emt 0:02:54]} 9. Bd3 {[%emt 0:02:53] White has an edge.} Ng6 {[%emt 0:02:12]} 10. Bg3 {[%emt 0:01:15]} O-O {[%emt 0:00:15]} 11. a3 {[%emt 0:05:02]} Bd6 {[%emt 0:03:32]} 12. Qc2 {[%emt 0:10:21]} Re8 {[%emt 0:06:59]} 13. Bf5 {[%emt 0:13:32]} Bxg3 {[%emt 0:12:07]} 14. hxg3 {[%emt 0:00:06]} Ng4 {[%emt 0:01:50]} 15. Bxg4 {[%emt 0:02:39]} Bxg4 {[%emt 0:01:31]} 16. f3 $1 {[%emt 0:14:41]} Qg5 {[%emt 0:08:44] Strongly threatening ...Bf5.} 17. Nf1 {[%emt 0:00:29]} Bf5 {[%emt 0:01:06]} 18. Qd2 {[%emt 0:00:16]} b5 {[%emt 0:11:32]} (18... Ne7 $15) 19. Ne2 {[%emt 0:03:11]} h5 {[%emt 0:04:57] [#]} 20. Nf4 $1 {[%emt 0:02:13]} Nxf4 {[%emt 0:00:58]} 21. gxf4 {[%emt 0:00:02]} Qg6 {[%emt 0:03:46]} (21... Qxf4 $14 22. Rxh5 Bg6) 22. Kf2 $18 {[%emt 0:00:33]} Qf6 {[%emt 0:19:08]} 23. Rxh5 {[%emt 0:00:32]} g6 {[%emt 0:00:10]} 24. Rh2 {[%emt 0:01:24]} Kg7 {[%emt 0:00:33]} 25. Ng3 {[%emt 0:01:54]} Rh8 {[%emt 0:00:23]} 26. Rah1 {[%emt 0:00:21][%cal Ba1h1,Bh1h2,Bh2h1][%mdl 32]} Rxh2 {[%emt 0:03:06]} 27. Rxh2 {[%emt 0:00:02]} Re8 {[%emt 0:01:37]} 28. Rh1 {[%emt 0:00:38]} Bc8 {[%emt 0:01:14]} 29. e4 {[%emt 0:02:22] And now e5 would win.} dxe4 {[%emt 0:02:24]} (29... Rh8 30. Rxh8 Kxh8) 30. Nxe4 {[%emt 0:01:15]} (30. fxe4 Rh8 31. Rxh8 Kxh8 $16) 30... Qe6 {[%emt 0:03:09] [#] Black is weak on the dark squares} 31. d5 $1 {[%emt 0:02:17][%mdl 512]} cxd5 {[%emt 0:00:45]} 32. Qd4+ {[%emt 0:00:33]} f6 {[%emt 0:00:43] [#]} 33. Nxf6 $1 {[%emt 0:00:48][%mdl 512]} Qxf6 {[%emt 0:01:02]} (33... Qe3+ 34. Qxe3) 34. Qd2 $4 {[%emt 0:02:22][%mdl 8192]} (34. Qxd5 $2 {too greedy.} Qxb2+ (34... Qxf4 $2 35. Qd3 $19) 35. Kg3 Re2 $19 (35... Qxa3 36. Qd4+)) (34. Rh7+ $1 $18 {is the narrow road to win.} Kxh7 35. Qxf6) 34... Qe7 $4 {[%emt 0:00:30][%mdl 8192] Weighted Error Value: White=0.32/Black=0.35.  Mistake:       	---       	Black=3      Inaccurate:     	White=3     	Black=4      OK:         	White=6     	Black=12     Best:        	White=2     	---        Strong:       	White=1     	---        Brilliant:      	White=1     	---} (34... d4 $19 35. Qa5 Re7 (35... Qxf4 $2 36. Qxa7+ Kf6 37. Qb6+ Be6 38. Rd1 $19) 36. Qxb5 Qxf4) 1-0

[Event "40th Cappelle Open 2024"]
[Site "Cappelle-la-Grande"]
[Date "2024.03.04"]
[Round "4.1"]
[White "Tarhan, Adar"]
[Black "Puranik, Abhimanyu"]
[Result "0-1"]
[ECO "D38"]
[WhiteElo "2432"]
[BlackElo "2618"]
[Annotator "RC"]
[PlyCount "172"]
[EventDate "2024.03.02"]
[EventType "swiss"]
[EventCountry "FRA"]
[SourceTitle "playchess.com"]
[Source "ChessBase"]
[SourceQuality "1"]
[TimeControl "40/5400+30:1800+30"]

1. Nf3 {[%emt 0:05:19]} Nf6 {[%emt 0:00:22]} 2. c4 {[%emt 0:00:55]} e6 {[%emt 0:00:53]} 3. Nc3 {[%emt 0:00:51]} d5 {[%emt 0:00:17]} 4. d4 {[%emt 0:00:13]} Bb4 {[%emt 0:00:10]} 5. cxd5 {[%emt 0:14:05]} exd5 {[%emt 0:00:04]} 6. Bg5 {[%emt 0:00:07]} h6 {[%emt 0:00:56]} 7. Bh4 {[%emt 0:00:24]} O-O {[%emt 0:01:19]} 8. Qb3 {[%emt 0:02:32]} c5 {[%emt 0:01:03]} 9. dxc5 {[%emt 0:01:31]} Nc6 {[%emt 0:02:34]} 10. e3 {[%emt 0:06:45]} g5 {[%emt 0:04:17]} 11. Bg3 {[%emt 0:00:24]} Ne4 {[%emt 0:00:11]} 12. Be2 {[%emt 0:02:07]} d4 {[%emt 0:01:49]} 13. Nxd4 {[%emt 0:00:40]} Nxd4 {[%emt 0:00:41]} 14. exd4 {[%emt 0:00:06]} Qxd4 {[%emt 0:00:13]} 15. O-O {[%emt 0:00:41]} Be6 {[%emt 0:27:11]} 16. Rad1 {[%emt 0:02:40]} Qxc5 {[%emt 0:02:34]} 17. Qc2 {[%emt 0:23:27]} Nxg3 {[%emt 0:01:37]} 18. hxg3 {[%emt 0:00:06]} Rfe8 {[%emt 0:09:39]} 19. Bd3 {[%emt 0:01:18]} Rac8 {[%emt 0:02:48]} 20. Qa4 {[%emt 0:00:18]} Bxc3 {[%emt 0:01:56]} 21. bxc3 {[%emt 0:03:14]} Red8 {[%emt 0:11:39]} 22. Qe4 {[%emt 0:05:21]} Qxc3 {[%emt 0:00:28]} 23. Bb1 {[%emt 0:00:13]} b6 {[%emt 0:06:30]} 24. Qh7+ {[%emt 0:00:44]} Kf8 {[%emt 0:00:03]} 25. Qxh6+ {[%emt 0:00:04]} Qg7 {[%emt 0:00:03]} 26. Qh5 {[%emt 0:00:30]} Qf6 {[%emt 0:00:15]} 27. Qe2 {[%emt 0:09:52]} Kg7 {[%emt 0:02:37]} 28. Rxd8 {[%emt 0:03:24]} Rxd8 {[%emt 0:00:03]} 29. Rc1 {[%emt 0:00:06]} g4 {[%emt 0:02:32]} 30. Rd1 {[%emt 0:06:35]} Rxd1+ {[%emt 0:04:21]} 31. Qxd1 {[%emt 0:00:05]} Qe5 {[%emt 0:00:34]} 32. Bc2 {[%emt 0:00:44]} b5 {[%emt 0:04:03]} 33. Bb3 {[%emt 0:00:38]} a5 {[%emt 0:01:56]} 34. Bxe6 {[%emt 0:00:24]} Qxe6 {[%emt 0:00:03]} 35. Qd4+ {[%emt 0:00:04]} Kg6 {[%emt 0:00:21]} 36. Qd3+ {[%emt 0:00:24]} Qf5 {[%emt 0:00:06]} 37. Qd8 {[%emt 0:02:17]} b4 {[%emt 0:02:21]} 38. Qg8+ {[%emt 0:00:03]} Kf6 {[%emt 0:00:03]} 39. Kh2 {[%emt 0:02:09]} Ke7 {[%emt 0:01:45]} 40. Qh8 {[%emt 0:04:51]} Kd6 {[%emt 0:03:30]} 41. Qd8+ {[%emt 0:31:50]} Kc6 {[%emt 0:30:06]} 42. Qe8+ {[%emt 0:00:47]} Kc5 {[%emt 0:01:19]} 43. Qe3+ {[%emt 0:01:15]} Kc4 {[%emt 0:00:45]} 44. Qc1+ {[%emt 0:00:10]} Kb5 {[%emt 0:00:30]} 45. Qf1+ {[%emt 0:00:03]} Kb6 {[%emt 0:00:06]} 46. Qd1 {[%emt 0:00:48]} Qe6 {[%emt 0:01:23]} 47. Qc2 {[%emt 0:01:30]} Kb5 {[%emt 0:00:28]} 48. Kg1 {[%emt 0:01:25]} Qc4 {[%emt 0:00:55]} 49. Qd1 {[%emt 0:00:00]} Qe6 {[%emt 0:00:00]} 50. Qc2 {[%emt 0:00:00]} Qd5 {[%emt 0:00:00]} 51. Kh2 {[%emt 0:00:00]} f5 {[%emt 0:00:00]} 52. Kg1 {[%emt 0:00:00]} a4 {[%emt 0:00:00]} 53. Qe2+ {[%emt 0:00:00]} Ka5 {[%emt 0:00:00]} 54. Qe7 {[%emt 0:00:00]} b3 {[%emt 0:00:00]} 55. a3 {[%emt 0:00:00]} Qd4 {[%emt 0:00:00]} 56. Qe6 {[%emt 0:00:00]} b2 {[%emt 0:00:00]} 57. Qxf5+ {[%emt 0:00:00]} Kb6 {[%emt 0:00:00]} 58. Qc2 {[%emt 0:00:00]} Qe5 {[%emt 0:00:00]} 59. Qg6+ {[%emt 0:00:00]} Ka5 {[%emt 0:00:00]} 60. Kh2 {[%emt 0:00:00]} Qb5 {[%emt 0:00:00]} 61. Qb1 {[%emt 0:00:00]} Qh5+ {[%emt 0:00:02]} 62. Kg1 {[%emt 0:00:00]} Qe5 {[%emt 0:00:03]} 63. Kh2 {[%emt 0:00:00]} Qh8+ {[%emt 0:03:09]} 64. Kg1 {[%emt 0:00:00]} Qc3 {[%emt 0:00:17]} 65. Qf5+ {[%emt 0:00:00]} Kb6 {[%emt 0:00:07]} 66. Kh2 {[%emt 0:00:00]} Qd2 {[%emt 0:00:45]} 67. Qf8 {[%emt 0:00:00]} Kb5 {[%emt 0:01:23]} 68. Qe8+ {[%emt 0:00:00]} Kc5 {[%emt 0:00:07]} 69. Qc8+ {[%emt 0:00:00]} Kd4 {[%emt 0:00:05]} 70. Qxg4+ {[%emt 0:00:00]} Kc3 {[%emt 0:01:04]} 71. Qb4+ {[%emt 0:00:00]} Kc2 {[%emt 0:00:05]} 72. Qxa4+ {[%emt 0:00:00]} Kb1 {[%emt 0:00:04]} 73. Qe4+ {[%emt 0:00:00]} Qc2 {[%emt 0:00:26]} 74. Qd4 {[%emt 0:00:00]} Kc1 {[%emt 0:01:26]} 75. Qf4+ {[%emt 0:00:00]} Kd1 {[%emt 0:00:32]} 76. Qd4+ {[%emt 0:00:00]} Ke1 {[%emt 0:00:22]} 77. Qe5+ {[%emt 0:00:00]} Kf1 {[%emt 0:04:04]} 78. Qb5+ {[%emt 0:00:00]} Kxf2 {[%emt 0:00:52]} 79. Qb6+ {[%emt 0:00:00]} Ke2 {[%emt 0:00:05]} 80. Qe6+ {[%emt 0:00:00]} Kd1 {[%emt 0:00:14]} 81. Qg4+ {[%emt 0:00:00]} Kc1 {[%emt 0:00:13]} 82. Qf4+ {[%emt 0:00:00]} Kb1 {[%emt 0:00:47]} 83. Qd4 {[%emt 0:00:00]} Ka2 {[%emt 0:00:05]} 84. Qd5+ {[%emt 0:00:00]} Qb3 {[%emt 0:00:03]} 85. Qd2 {[%emt 0:00:00]} Qc4 {[%emt 0:00:06]} 86. Qf2 {[%emt 0:00:00]} Qc3 {[%emt 0:00:05]} 0-1

[Event "40th Cappelle Open 2024"]
[Site "Cappelle-la-Grande"]
[Date "2024.03.04"]
[Round "4.2"]
[White "Boyer, Mahel"]
[Black "Sasikiran, Krishnan"]
[Result "1/2-1/2"]
[ECO "A13"]
[WhiteElo "2415"]
[BlackElo "2578"]
[Annotator "TA"]
[PlyCount "68"]
[EventDate "2024.03.02"]
[EventType "swiss"]
[EventCountry "FRA"]
[SourceTitle "playchess.com"]
[Source "ChessBase"]
[SourceQuality "1"]
[TimeControl "40/5400+30:1800+30"]

{[%evp 12,68,27,10,11,0,0,23,19,8,14,21,16,4,1,-114,16,20,23,42,40,-32,-25,-45,-31,-34,-34,-30,-42,-38,-17,-31,-19,-33,-25,-12,-22,-35,-8,-14,-10,-24,0,-69,-64,-68,-65,-66,-66,-66,-66,-67,-66,-67,0,0,0,0,0]} 1. Nf3 {[%emt 0:00:06]} d5 {[%emt 0:05:30]} 2. e3 {[%emt 0:00:34]} Nf6 {[%emt 0:03:00]} 3. c4 {[%emt 0:00:05]} e6 {[%emt 0:00:47]} 4. b3 {[%emt 0:00:05]} c5 {[%emt 0:01:02]} 5. Bb2 {[%emt 0:00:06]} Nc6 {[%emt 0:00:29]} 6. cxd5 {[%emt 0:00:05]} exd5 {[%emt 0:00:43]} 7. Be2 {[%emt 0:00:05]} a6 {[%emt 0:05:42]} 8. d4 {[%emt 0:13:01]} cxd4 {[%emt 0:02:32]} 9. Nxd4 {[%emt 0:00:04]} Bb4+ {[%emt 0:00:23] White has an edge.} 10. Bc3 {[%emt 0:08:53]} Bd6 {[%emt 0:02:52]} 11. Nd2 {[%emt 0:00:40]} O-O {[%emt 0:03:02]} 12. O-O {[%emt 0:01:05]} Re8 {[%emt 0:03:49]} 13. Qc2 {[%emt 0:08:47]} (13. Nxc6 $11 {keeps the balance.} bxc6 14. Qc2) 13... Ne5 {[%emt 0:14:34]} (13... Bxh2+ $1 $17 14. Kh1 Bb8) 14. Rad1 $11 {[%emt 0:07:34]} Ne4 {[%emt 0:05:17]} 15. Nxe4 {[%emt 0:37:33]} dxe4 {[%emt 0:00:22]} 16. g3 {[%emt 0:00:32]} (16. h3 $14) 16... Bh3 $15 {[%emt 0:11:33]} 17. Qxe4 $1 {[%emt 0:00:43]} Qc7 {[%emt 0:04:05][%cal Oh3f1]} (17... Rc8 $5 18. Ba1 (18. Nf5 $2 Bxf5 19. Qxf5 Rxc3 $19) 18... Qc7 $15) 18. Ba1 {[%emt 0:14:26]} Nc6 {[%emt 0:05:36]} 19. Qf3 {[%emt 0:04:48]} Bxf1 {[%emt 0:03:13]} 20. Bxf1 {[%emt 0:00:05]} Nxd4 {[%emt 0:00:39]} 21. Rxd4 {[%emt 0:00:02]} Be5 {[%emt 0:01:52]} 22. Rc4 {[%emt 0:00:05]} Qb6 {[%emt 0:01:06]} 23. Bxe5 {[%emt 0:00:03]} Rxe5 {[%emt 0:00:05]} 24. Rf4 {[%emt 0:00:04]} Rf8 {[%emt 0:08:52]} 25. Bc4 {[%emt 0:00:01]} Qc7 {[%emt 0:00:52]} 26. a4 {[%emt 0:02:01]} g6 {[%emt 0:02:24]} 27. e4 {[%emt 0:00:30]} (27. Bd5 $11) 27... Kg7 {[%emt 0:00:55]} 28. h4 {[%emt 0:00:02]} b5 {[%emt 0:02:12]} 29. axb5 {[%emt 0:00:05]} axb5 {[%emt 0:00:05]} 30. Bd5 {[%emt 0:00:01]} f5 {[%emt 0:01:36]} 31. Kg2 {[%emt 0:03:18]} b4 {[%emt 0:02:35]} 32. Qe3 {[%emt 0:00:27][%cal Oh4h5]} Rfe8 {[%emt 0:02:17]} (32... Rd8 $15 33. Qd4 fxe4 34. Rf7+ Qxf7 35. Qxe5+ Qf6 36. Qxe4 (36. Qxf6+ $2 Kxf6 37. Bxe4 Ke5 $19) 36... h5) 33. Qd4 $11 {[%emt 0:00:04][%csl LRb4,LRf5]} Qc3 {[%emt 0:00:23]} 34. Qb6 {[%emt 0:00:00][%cal Oh4h5]} (34. exf5 $2 {is the wrong capture.} Qxd4 (34... gxf5 35. Qb6 $16) 35. Rxd4 (35. f6+ $2 Kf8 $19) 35... Rd8 (35... Rxf5 36. Be4 $11) (35... gxf5 36. Bc4 $11) 36. Rxb4 Rexd5 (36... Rdxd5 $2 37. Rb7+ Kf8 38. fxg6 $19) 37. fxg6 Kxg6 (37... hxg6 $2 38. Re4 $19) 38. Rg4+ Kf6 $19) 34... Qd2 {[%emt 0:02:29] Weighted Error Value: White=0.17 (very precise) /Black=0.13 (very precise) .  Mistake:       	White=3     	Black=2      Inaccurate:     	---       	Black=1      OK:         	White=11    	Black=11     Best:        	White=1     	Black=1      Strong:       	White=1     	---} 1/2-1/2